fUSD/lending_fUSD_20250806
["ID","MTS","AMOUNT","RATE_DAILY","PERIOD"]
[377687898,1754491847425,-1950.88,0.00038356,14]
[377687902,1754491847453,-635.66,0.00038356,14]
[377687905,1754491847465,-400.0,0.00038356,14]
[377687907,1754491847479,-400.0,0.00038356,14]
[377687909,1754491847492,-400.0,0.00038356,14]
[377687912,1754491847505,-434.36,0.00038356,14]
[377687914,1754491847518,-1923.51,0.00038356,14]
[377687916,1754491847531,-942.47,0.00038356,14]
[377687919,1754491847544,-400.0,0.00038356,14]
[377687921,1754491847556,-486.34255482,0.00038356,14]
[377687923,1754491847568,-2592.87,0.00038356,14]
[377687925,1754491847585,-3685.7,0.00038356,14]
[377687928,1754491847597,-2570.66,0.00038356,14]
[377687930,1754491847609,-1951.71,0.00038356,14]
[377687932,1754491847622,-1492.17,0.00038356,14]
[377687934,1754491847634,-400.0,0.00038356,14]
[377687937,1754491847647,-400.0,0.00038356,14]
[377687939,1754491847660,-446.13,0.00038356,14]
[377687941,1754491847673,-2746.35,0.00038356,14]
[377687943,1754491847685,-2022.55,0.00038356,14]
[377687944,1754491847701,-486.39,0.00038356,14]
[377687945,1754491847716,-400.0,0.00038356,14]
[377687946,1754491847729,-400.0,0.00038356,14]
[377687947,1754491847741,-1329.84,0.00038356,14]
[377687948,1754491847754,-885.01,0.00038356,14]
[377687949,1754491847768,-688.07,0.00038356,14]
[377687951,1754491847781,-1802.38,0.00038356,14]
[377687953,1754491847794,-2269.58,0.00038356,14]
[377687955,1754491847809,-883.63,0.00038356,14]
[377687957,1754491847823,-300.0,0.00038356,14]
[377687959,1754491847836,-1809.82,0.00038356,14]
[377687962,1754491847848,-1604.19,0.00038356,14]
[377687964,1754491847861,-362.90474641,0.00038356,14]
[377687966,1754491847873,-400.0,0.00038356,14]
[377687968,1754491847884,-256.6610664,0.00038356,14]
[377687970,1754491847897,-1226.57,0.00038356,14]
[377687972,1754491847909,-400.0,0.00038356,14]
[377687975,1754491847921,-1391.54,0.00038356,14]
[377687977,1754491847933,-400.0,0.00038356,14]
[377687979,1754491847946,-1007.6,0.00038356,14]
[377687982,1754491847958,-400.0,0.00038356,14]
[377687984,1754491847974,-400.0,0.00038356,14]
[377687986,1754491847987,-726.34,0.00038356,14]
[377687988,1754491847999,-512.16,0.00038356,14]
[377687990,1754491848013,-400.0,0.00038356,14]
[377687992,1754491848026,-400.0,0.00038356,14]
[377687995,1754491848039,-1405.29,0.00038356,14]
[377687997,1754491848052,-2358.86,0.00038356,14]
[377687999,1754491848066,-1508.12,0.00038356,14]
[377688002,1754491848081,-400.0,0.00038356,14]
[377688004,1754491848093,-400.0,0.00038356,14]
[377688006,1754491848105,-1559.58,0.00038356,14]
[377688008,1754491848117,-800.95,0.00038356,14]
[377688010,1754491848129,-346.14646976,0.00038356,14]
[377688013,1754491848142,-1656.15,0.00038356,14]
[377688015,1754491848154,-579.5,0.00038356,14]
[377688017,1754491848167,-755.19,0.00038356,14]
[377688019,1754491848179,-1760.29,0.00038356,14]
[377688022,1754491848191,-1066.49,0.00038356,14]
[377688024,1754491848203,-400.0,0.00038356,14]
[377688026,1754491848215,-1128.24,0.00038356,14]
[377688029,1754491848229,-2580.73,0.00038356,14]
[377688031,1754491848240,-1324.02,0.00038356,14]
[377688033,1754491848251,-308.03934585,0.00038356,14]
[377688035,1754491848263,-571.11,0.00038356,14]
[377688037,1754491848276,-400.0,0.00038356,14]
[377688039,1754491848288,-496.14332594,0.00038356,14]
[377691357,1754491909079,310.94455402,0.0003013,120]
[377691361,1754492115770,157.38,0.00013699,2]
[377691486,1754493032452,-250.0,0.00026941,2]
[377691487,1754493032463,-250.0,0.0002739,2]
[377691488,1754493032473,-250.0,0.00028777,2]
[377691489,1754493032483,-176.84971544,0.00028982,2]
[377691490,1754493032541,-7.28028456,0.00028982,2]
[377691491,1754493032552,-425.453,0.00028995,3]
[377691492,1754493032561,-2411.0,0.000294,5]
[377691493,1754493032571,-168.05,0.00030706,2]
[377691494,1754493032581,-168.05,0.00032436,2]
[377691495,1754493032591,-165.56,0.00034125,2]
[377691496,1754493032601,-168.05,0.00034167,2]
[377691497,1754493032611,-157.38,0.00034247,2]
[377691498,1754493032621,-513.0,0.00034665,2]
[377691499,1754493032631,-152.16053059,0.00035014,4]
[377691500,1754493032640,-4655.58084448,0.00035455,2]
[377691501,1754493037256,-1217.44903459,0.00029277,3]
[377691502,1754493037290,-670.55096541,0.00029277,3]
[377691503,1754493037300,-1232.15770135,0.00031517,3]
[377691504,1754493037311,-2543.84229865,0.00031517,3]
[377691505,1754493037321,-5344.40915552,0.00035455,2]
[377691506,1754493037330,-150.99,0.00035455,2]
[377691507,1754493037340,-176.63,0.00035476,30]
[377691508,1754493037350,-175.000001,0.000355,120]
[377691509,1754493037360,-168.05,0.00035897,2]
[377691510,1754493037370,-666.0,0.0003599,3]
[377691511,1754493037379,-653.72,0.00036064,2]
[377691512,1754493037390,-607.65,0.00036068,30]
[377691513,1754493037402,-200.0,0.00036157,2]
[377691514,1754493037412,-205.19,0.00036175,2]
[377691515,1754493037422,-589.27,0.00036188,30]
[377691517,1754493037432,-365.95,0.00036206,2]
[377691519,1754493037443,-165.4,0.00036207,2]
[377691520,1754493037453,-589.34,0.00036207,30]
[377691521,1754493037462,-609.01,0.00036372,30]
[377691522,1754493037473,-597.49,0.00036372,30]
[377691523,1754493037482,-272.64,0.00036495,2]
[377691525,1754493037492,-23900.0,0.00036503,2]
[377691527,1754493037501,-4377.61,0.00036514,2]
[377691529,1754493037511,-422.41,0.00036541,2]
[377691531,1754493037521,-609.91,0.00036583,30]
[377691533,1754493037530,-299.25,0.00036653,2]
[377691535,1754493037540,-180.72,0.00036737,2]
[377691537,1754493037550,-592.48,0.00036772,30]
[377691539,1754493037559,-609.63,0.0003684,30]
[377691541,1754493037569,-150.0,0.00036841,2]
[377691543,1754493037579,-809.0,0.00036841,2]
[377691545,1754493037588,-955.0,0.00036841,2]
[377691546,1754493037598,-468.831,0.00036841,2]
[377691548,1754493037608,-2023.0,0.00036841,2]
[377691550,1754493037617,-1292.0,0.00036841,2]
[377691552,1754493037627,-1651.0,0.00036841,2]
[377691554,1754493037637,-7820.623,0.00036841,2]
[377691556,1754493037646,-250.0,0.00036969,2]
[377691558,1754493037656,-155.69,0.00036975,2]
[377691560,1754493037665,-152.0,0.00036986,5]
[377691561,1754493037675,-152.7,0.00036995,2]
[377691562,1754493037684,-151.25,0.00036995,2]
[377691563,1754493037694,-150.57,0.00036995,2]
[377691565,1754493037703,-151.29,0.00036995,2]
[377691566,1754493037712,-152.26,0.00036995,2]
[377691567,1754493037722,-151.28,0.00036995,2]
[377691568,1754493037731,-152.28,0.00036995,2]
[377691569,1754493037740,-598.56,0.00037108,30]
[377691570,1754493037750,-188.33,0.00037131,2]
[377691571,1754493037760,-606.85,0.00037151,30]
[377691572,1754493037769,-500.0,0.00037259,7]
[377691573,1754493037778,-500.0,0.00037259,7]
[377691574,1754493037790,-1000.0,0.00037336,2]
[377691575,1754493037799,-151.11,0.000374,2]
[377691576,1754493037809,-598.99,0.00037536,30]
[377691577,1754493037818,-598.69,0.00037536,30]
[377691578,1754493037828,-668.66,0.000376,2]
[377691579,1754493037837,-1000.0,0.000376,13]
[377691580,1754493037847,-168.05,0.00037627,2]
[377691581,1754493037857,-2000.0,0.000377,13]
[377691582,1754493037867,-3100.0,0.000378,13]
[377691583,1754493037876,-868.50078418,0.00037878,2]
[377691584,1754493037886,-4100.0,0.000379,13]
[377691585,1754493037896,-170.04,0.00037986,2]
[377691586,1754493037905,-500.58126642,0.00038,30]
[377691587,1754493037914,-684.66,0.00038,2]
[377691588,1754493037924,-499.5988,0.00038,7]
[377691589,1754493037933,-250.0,0.00038,120]
[377691590,1754493037943,-228.68,0.00038,30]
[377691591,1754493037952,-15016.54230463,0.00038056,16]
[377691592,1754493037964,-180.53,0.00038076,2]
[377691593,1754493037974,-2000.0,0.000381,2]
[377691594,1754493037983,-1000.0,0.000381,2]
[377691595,1754493037993,-6776.82577574,0.00038118,2]
[377691596,1754493038003,-1000.0,0.00038156,2]
[377691597,1754493038014,-2500.0,0.00038156,2]
[377691598,1754493038023,-175.45787696,0.00038156,2]
[377691599,1754493038033,-489.05843526,0.00038199,2]
[377691600,1754493038042,-5000.0,0.000382,2]
[377691601,1754493038052,-335.4,0.00038236,3]
[377691602,1754493038062,-457.43778519,0.0003824,2]
[377691603,1754493038071,-868.50078418,0.00038241,2]
[377691604,1754493038080,-113404.6593,0.00038246,2]
[377691605,1754493038089,-1000.0,0.00038256,2]
[377691607,1754493038099,-5855.1177,0.00038256,2]
[377691609,1754493038108,-3662.01390335,0.00038256,2]
[377691611,1754493038117,-489.05843522,0.00038266,2]
[377691613,1754493038129,-500.0,0.00038273,5]
[377691615,1754493038138,-305.19383938,0.00038273,5]
[377691617,1754493038147,-500.0,0.00038273,5]
[377691619,1754493038156,-510.96910539,0.00038273,5]
[377691622,1754493038165,-500.0,0.00038273,5]
[377691624,1754493038175,-500.0,0.00038273,5]
[377691626,1754493038184,-308.20399449,0.00038273,5]
[377691628,1754493038193,-500.0,0.00038273,5]
[377691630,1754493038203,-500.0,0.00038273,5]
[377691632,1754493038212,-500.0,0.00038273,5]
[377691634,1754493038222,-500.0,0.00038273,5]
[377691636,1754493038231,-500.0,0.00038273,5]
[377691638,1754493038240,-500.0,0.00038273,5]
[377691640,1754493038249,-500.0,0.00038273,5]
[377691642,1754493038258,-500.0,0.00038273,5]
[377691643,1754493038267,-500.0,0.00038273,5]
[377691644,1754493038278,-175.45787696,0.00038281,2]
[377691645,1754493038289,-167.8871423,0.00038299,15]
[377691646,1754493038299,-480.29691784,0.00038299,15]
[377691647,1754493038308,-161264.14277208,0.000383,2]
[377691648,1754493038321,-268809.91177839,0.000383,2]
[377691649,1754493038331,-327022.86261832,0.000383,2]
[377691650,1754493038355,-1434.770854,0.000383,2]
[377691651,1754493038367,-480.29763192,0.000383,2]
[377691652,1754493038383,-7789.7002585,0.000383,2]
[377691653,1754493038500,-1888.0,0.00029777,3]
[377691654,1754493038510,-386.359,0.00032017,3]
[377691657,1754493038574,-3021.61479999,0.00032017,3]
[377691829,1754493040443,-368.02620001,0.00032017,3]
[377691831,1754493040452,-784.994,0.00036841,2]
[377691833,1754493040462,-211.52696026,0.0003824,2]
[377691835,1754493040474,-443.23984518,0.000383,2]
[377691842,1754493040539,-1857.30499995,0.000383,2]
[377692133,1754493043533,-1888.0,0.00032517,3]
[377692135,1754493043544,-1605.1879871,0.00034757,3]
[377692423,1754493046507,-745.84999664,0.00033017,3]
[377692425,1754493046519,-1142.15000336,0.00033017,3]
[377692427,1754493046529,-1443.28999634,0.00034757,3]
[377693240,1754493054908,157.38,0.00013699,2]
[377695268,1754493754542,1214.65,0.00030137,120]
[377695273,1754493908095,20376.10616727,0.00019,2]
[377695274,1754493908122,6433.48616727,0.00019,2]
[377695277,1754493939147,160.0,0.0002,3]
[377695322,1754494119478,3178.72764141,0.000151,2]
[377695336,1754494135953,158.03,0.00013699,2]
[377695343,1754494172197,-300.0,0.00018999,2]
[377695344,1754494172227,-248.57677137,0.00018999,2]
[377695345,1754494172255,-67651.42322863,0.00019,2]
[377695347,1754494177855,610.0,0.00023,30]
[377695362,1754494231531,-664.06530526,0.000189,2]
[377695363,1754494231615,-1754.1760342,0.000189,2]
[377695364,1754494231624,-300.0,0.00018999,2]
[377695365,1754494231634,-852.30679983,0.00019,2]
[377695366,1754494231646,-1934.80490719,0.00019,2]
[377695367,1754494231658,-847.87333955,0.00019,2]
[377695368,1754494231698,-36535.56988449,0.00019,2]
[377695369,1754494231710,-1608.62825566,0.00019,2]
[377695370,1754494231920,-1902.31129992,0.00019,2]
[377695371,1754494231934,-2619.297487,0.00019,2]
[377695372,1754494231948,-300.24972618,0.00019,2]
[377695373,1754494231960,-6457.42303614,0.00019,2]
[377695374,1754494231971,-1110.78,0.00019,2]
[377695388,1754494237563,-8295.81455989,0.00019,2]
[377695389,1754494237643,-1576.46636278,0.00019,2]
[377695390,1754494237671,-518.42481689,0.00019,2]
[377695391,1754494237683,-2030.1155252,0.00019,2]
[377695392,1754494237718,-551.09530478,0.00019,2]
[377695564,1754494239577,-6611.71067676,0.00019,2]
[377695567,1754494239587,-500.0,0.00019,2]
[377695570,1754494239596,-300.32033973,0.00019,2]
[377695573,1754494239606,-500.0,0.00019,2]
[377695576,1754494239615,-249.0,0.00023663,2]
[377695579,1754494239625,-184.13,0.00028371,2]
[377695582,1754494239634,-153.21980766,0.000308,2]
[377695585,1754494239643,-286.3478,0.00031,120]
[377695588,1754494239653,-168.27,0.00031404,2]
[377695591,1754494239662,-168.27,0.00033134,2]
[377695594,1754494239671,-175.17219344,0.000332,2]
[377695597,1754494239681,-152.0,0.00033213,3]
[377695600,1754494239692,-63.31960577,0.00033417,2]
[377695603,1754494239704,-354.19039423,0.00033417,2]
[377695606,1754494239714,-727.52201656,0.00034757,3]
[377695609,1754494239723,-150.00000001,0.00034767,4]
[377695612,1754494239732,-169.55436415,0.00034767,4]
[377695615,1754494239742,-255.82089424,0.00034767,4]
[377695618,1754494239751,-150.0,0.00034767,4]
[377695621,1754494239761,-270.05132164,0.00034767,4]
[377695624,1754494239770,-150.0,0.00034767,4]
[377695626,1754494239779,-150.0,0.00034827,7]
[377695628,1754494239789,-168.27,0.00034864,2]
[377695630,1754494239798,-150.0,0.00034886,7]
[377695632,1754494239807,-150.0,0.00034945,7]
[377695634,1754494239817,-150.0,0.00035005,7]
[377695636,1754494239826,-150.0,0.00035064,7]
[377695638,1754494239836,-150.0,0.00035124,7]
[377695640,1754494239845,-434.56,0.00035127,2]
[377695642,1754494239855,-314.42,0.00035135,2]
[377695644,1754494239864,-250.0,0.00035135,2]
[377695646,1754494239873,-2441.54910769,0.0003517,2]
[377695649,1754494239897,-1312.0,0.0003517,2]
[377695654,1754494239933,-6328.04089231,0.0003517,2]
[377695655,1754494239942,-150.0,0.00035183,7]
[377695657,1754494239951,-1699.99245153,0.00035202,2]
[377695659,1754494239961,-150.0,0.00035243,7]
[377695661,1754494239970,-150.0,0.00035302,7]
[377695663,1754494239979,-150.0,0.00035349,2]
[377695665,1754494239988,-150.0,0.00035361,7]
[377695667,1754494240000,-186.91,0.00035391,2]
[377695669,1754494240010,-1000.0,0.00035397,2]
[377695671,1754494240019,-158.96,0.00035419,30]
[377695673,1754494240028,-150.0,0.00035421,7]
[377695675,1754494240038,-150.0,0.0003548,7]
[377695677,1754494240047,-150.0,0.0003554,7]
[377695679,1754494240063,-1699.9924515,0.00035572,2]
[377695681,1754494240072,-150.0,0.00035599,7]
[377695683,1754494240082,-150.0,0.00035659,7]
[377695685,1754494240092,-150.0,0.00035718,7]
[377695687,1754494240101,-150.0,0.00035777,7]
[377695689,1754494240111,-150.0,0.00035837,7]
[377695691,1754494240120,-150.0,0.00035896,7]
[377695693,1754494240129,-1699.9924515,0.00035942,2]
[377695694,1754494240138,-150.0,0.00035956,7]
[377695696,1754494240149,-1512.21029282,0.00036,5]
[377695697,1754494240166,-150.0,0.00036015,7]
[377695698,1754494240175,-150.0,0.00036075,7]
[377695699,1754494240184,-150.0,0.00036134,7]
[377695700,1754494240194,-150.0,0.00036193,7]
[377695701,1754494240203,-150.0,0.00036253,7]
[377695702,1754494240212,-1699.9924515,0.00036311,2]
[377695703,1754494240222,-150.0,0.00036312,7]
[377695704,1754494240231,-150.0,0.00036372,7]
[377695705,1754494240241,-150.0,0.00036431,7]
[377695706,1754494240251,-666.0,0.00036457,3]
[377695707,1754494240260,-150.0,0.00036491,7]
[377695708,1754494240270,-165.46,0.0003653,2]
[377695709,1754494240279,-150.0,0.0003655,7]
[377695710,1754494240289,-168.27,0.00036595,2]
[377695711,1754494240299,-150.0,0.00036609,7]
[377695712,1754494240309,-150.0,0.00036669,7]
[377695713,1754494240318,-1699.9924515,0.00036681,2]
[377695714,1754494240327,-150.0,0.00036728,7]
[377695715,1754494240337,-513.0,0.00036732,2]
[377695716,1754494240346,-200.0,0.00036754,2]
[377695717,1754494240356,-980.59,0.00036757,2]
[377695718,1754494240367,-980.59,0.00036777,2]
[377695719,1754494240376,-1555.01,0.00036781,120]
[377695720,1754494240387,-150.0,0.00036788,7]
[377695721,1754494240399,-980.59,0.00036796,2]
[377695722,1754494240408,-980.59,0.00036815,2]
[377695723,1754494240417,-1836.98,0.00036818,2]
[377695724,1754494240427,-980.59,0.00036835,2]
[377695725,1754494240437,-203.63,0.00036838,2]
[377695726,1754494240446,-1665.83,0.00036846,120]
[377695727,1754494240456,-150.0,0.00036847,7]
[377695728,1754494240464,-465.26,0.00036848,2]
[377695729,1754494240474,-980.59,0.00036854,2]
[377695730,1754494240484,-980.59,0.00036873,2]
[377695731,1754494240493,-500.0,0.00036882,2]
[377695732,1754494240503,-500.0,0.00036882,2]
[377695733,1754494240513,-428.59505164,0.00036882,2]
[377695734,1754494240523,-434.56,0.00036883,2]
[377695735,1754494240827,-980.59,0.00036893,2]
[377695736,1754494240837,-10705.33,0.00036904,2]
[377695737,1754494240847,-150.0,0.00036907,7]
[377695738,1754494240857,-980.59,0.00036912,2]
[377695739,1754494240867,-980.59,0.00036931,2]
[377695740,1754494240878,-980.59,0.00036951,2]
[377695741,1754494240887,-150.0,0.00036966,7]
[377695742,1754494240897,-980.59,0.0003697,2]
[377695743,1754494240908,-980.59,0.00036989,2]
[377695744,1754494240918,-1000.0,0.00037,120]
[377695745,1754494240928,-980.59,0.00037009,2]
[377695746,1754494240938,-175.45787696,0.00037025,2]
[377695747,1754494240947,-150.0,0.00037026,7]
[377695748,1754494240959,-980.59,0.00037028,2]
[377695749,1754494240973,-820.85,0.00037033,7]
[377695750,1754494240983,-980.59,0.00037047,2]
[377695751,1754494240993,-1000.0,0.00037049,2]
[377695752,1754494241005,-1699.9924515,0.00037051,2]
[377695753,1754494241015,-980.59,0.00037067,2]
[377695754,1754494241024,-150.0,0.00037085,7]
[377695755,1754494241033,-980.59,0.00037086,2]
[377695756,1754494241043,-980.59,0.00037106,2]
[377695757,1754494241052,-980.59,0.00037125,2]
[377695758,1754494241062,-150.0,0.00037144,7]
[377695759,1754494241072,-150.0,0.00037204,7]
[377695760,1754494241083,-947.09,0.00037236,2]
[377695761,1754494241092,-500.0,0.00037259,7]
[377695762,1754494241102,-500.0,0.00037259,7]
[377695763,1754494241111,-150.0,0.00037263,7]
[377695764,1754494241121,-745.0,0.0003728,2]
[377695765,1754494241131,-500.0,0.0003728,2]
[377695766,1754494241140,-500.0,0.0003728,2]
[377695767,1754494241149,-500.0,0.0003728,120]
[377695768,1754494241159,-150.0,0.0003728,2]
[377695769,1754494241168,-500.0,0.0003728,2]
[377695770,1754494241177,-153.18887779,0.0003728,2]
[377695771,1754494241186,-150.0,0.0003728,2]
[377695772,1754494241195,-2000.0,0.000373,2]
[377695773,1754494241205,-150.0,0.00037323,7]
[377695774,1754494241214,-155.87,0.00037358,120]
[377695775,1754494241223,-150.0,0.00037382,7]
[377695776,1754494241232,-1699.9924515,0.00037421,2]
[377695777,1754494241242,-150.0,0.00037442,7]
[377695778,1754494241251,-1000.0,0.000375,13]
[377695779,1754494241260,-150.0,0.00037501,7]
[377695780,1754494241270,-2500.0,0.00037502,2]
[377695781,1754494241279,-745.0,0.00037554,2]
[377695782,1754494241288,-500.0,0.00037554,2]
[377695783,1754494241297,-500.0,0.00037554,2]
[377695784,1754494241308,-500.0,0.00037554,120]
[377695785,1754494241317,-150.0,0.00037554,2]
[377695786,1754494241327,-500.0,0.00037554,2]
[377695787,1754494241336,-205.16083841,0.00037554,2]
[377695788,1754494241346,-150.0,0.0003756,7]
[377695789,1754494241355,-2000.0,0.000376,13]
[377695790,1754494241365,-564.0,0.00037602,2]
[377695791,1754494241375,-1292.0,0.00037602,2]
[377695792,1754494241385,-1488.31,0.00037602,2]
[377695793,1754494241394,-958.0,0.00037602,2]
[377695794,1754494241404,-809.0,0.00037602,2]
[377695795,1754494241414,-3362.0,0.00037602,2]
[377695796,1754494241423,-955.0,0.00037602,2]
[377695797,1754494241434,-150.0,0.0003762,7]
[377695798,1754494241444,-150.0,0.00037679,7]
[377695799,1754494241453,-3100.0,0.000377,13]
[377695800,1754494241463,-150.0,0.00037739,7]
[377695801,1754494241472,-1699.9924515,0.0003779,2]
[377695802,1754494241482,-150.0,0.00037798,7]
[377695803,1754494241491,-4100.0,0.000378,13]
[377695804,1754494241501,-745.0,0.00037828,2]
[377695805,1754494241511,-500.0,0.00037828,2]
[377695806,1754494241520,-500.0,0.00037828,2]
[377695807,1754494241531,-500.0,0.00037828,120]
[377695808,1754494241541,-150.0,0.00037828,2]
[377695809,1754494241551,-500.0,0.00037828,2]
[377695810,1754494241563,-150.0,0.00037858,7]
[377695811,1754494241573,-5200.0,0.000379,13]
[377695812,1754494241582,-150.0,0.00037917,7]
[377695813,1754494241592,-150.0,0.00037976,7]
[377695814,1754494241602,-457.43778519,0.00037988,2]
[377695815,1754494241611,-211.52696026,0.00037988,2]
[377695816,1754494241621,-252.0,0.00038,120]
[377695817,1754494241631,-601.8,0.00038,2]
[377695818,1754494241640,-11870.05113441,0.00038,12]
[377695819,1754494241649,-1000.0,0.00038,120]
[377695820,1754494241659,-243.15059638,0.00038,7]
[377695821,1754494241669,-8580.88,0.00038,16]
[377695822,1754494241679,-150.0,0.00038036,7]
[377695823,1754494241688,-500.0,0.00038056,16]
[377695824,1754494241698,-150.0,0.00038056,7]
[377695825,1754494241707,-500.0,0.00038056,16]
[377695826,1754494241717,-150.0,0.00038056,2]
[377695827,1754494241727,-435.0,0.00038056,16]
[377695828,1754494241736,-994.0,0.00038056,16]
[377695829,1754494241745,-150.0,0.00038095,7]
[377695830,1754494241755,-5720.56,0.000381,16]
[377695831,1754494241764,-745.0,0.00038102,2]
[377695832,1754494241773,-500.0,0.00038102,2]
[377695833,1754494241783,-243.2447371,0.00038102,2]
[377695834,1754494241792,-500.0,0.00038102,120]
[377695835,1754494241802,-181.52577722,0.00038102,2]
[377695836,1754494241813,-500.0,0.00038102,2]
[377695837,1754494241822,-500.0,0.00038133,2]
[377695838,1754494241831,-205.5495666,0.00038133,2]
[377695839,1754494241841,-189.99509286,0.00038133,2]
[377695840,1754494241850,-500.0,0.00038133,2]
[377695841,1754494241861,-500.0,0.00038133,2]
[377695842,1754494241870,-500.0,0.00038133,2]
[377695843,1754494241880,-1000.0,0.00038146,2]
[377695844,1754494241891,-150.0,0.00038155,7]
[377695845,1754494241901,-1699.9924515,0.0003816,2]
[377695846,1754494241911,-500.0,0.00038166,2]
[377695847,1754494241921,-500.0,0.00038168,3]
[377695848,1754494241931,-391.24674823,0.0003819,2]
[377695849,1754494241940,-3234.86686801,0.0003819,2]
[377695851,1754494242697,-1080.6550442,0.00028871,3]
[377695852,1754494242721,-476.60356861,0.00028871,3]
[377695853,1754494242733,-330.74138719,0.00028871,3]
[377695854,1754494242742,-398.47417605,0.00031111,3]
[377695855,1754494242754,-862.79206567,0.00031111,3]
[377695856,1754494242766,-1218.68,0.00031111,3]
[377695857,1754494242778,-1296.05375828,0.00031111,3]
[377695858,1754494242787,-1888.0,0.00037383,3]
[377695859,1754494242797,-1765.13313199,0.0003819,2]
[377695860,1754494242808,-163.90496011,0.00038198,15]
[377695861,1754494242819,-1000.0,0.00038199,15]
[377695862,1754494242829,-1000.0,0.00038199,15]
[377695863,1754494242839,-1000.0,0.00038199,15]
[377695864,1754494242849,-1000.0,0.00038199,15]
[377695865,1754494242859,-1000.0,0.00038199,15]
[377695866,1754494242869,-1000.0,0.00038199,15]
[377695867,1754494242878,-1000.0,0.00038199,15]
[377695869,1754494242888,-1000.0,0.00038199,15]
[377695871,1754494242897,-1000.0,0.00038199,15]
[377695873,1754494242906,-1000.0,0.00038199,15]
[377695875,1754494242915,-1000.0,0.00038199,15]
[377695877,1754494242925,-688.02150641,0.00038199,15]
[377695878,1754494242935,-53.08862873,0.000382,2]
[377695879,1754494242946,-608.56444039,0.000382,2]
[377695880,1754494242977,-1956.92286376,0.000382,2]
[377695902,1754494245689,-35430.81676712,0.000382,2]
[377695903,1754494245701,-500.0,0.000382,2]
[377695904,1754494245714,-150.0,0.000382,2]
[377695905,1754494245726,-500.0,0.000382,2]
[377695906,1754494245738,-150.0,0.000382,2]
[377695907,1754494245750,-500.0,0.000382,2]
[377695908,1754494245762,-150.0,0.000382,2]
[377695909,1754494245773,-500.0,0.000382,2]
[377695910,1754494245786,-2080.86864645,0.00038209,4]
[377695911,1754494245800,-2769.0077761,0.00038209,4]
[377695912,1754494245812,-150.0,0.00038214,7]
[377695913,1754494245824,-944.2177592,0.00038219,30]
[377695914,1754494245838,-55.7822408,0.00038219,30]
[377695915,1754494245851,-1000.0,0.00038219,30]
[377695916,1754494245864,-1000.0,0.00038219,30]
[377695917,1754494245876,-1000.0,0.00038219,30]
[377695918,1754494245888,-1000.0,0.00038219,30]
[377695919,1754494245900,-1000.0,0.00038219,30]
[377695920,1754494245913,-1000.0,0.00038219,30]
[377695921,1754494245925,-1000.0,0.00038219,30]
[377695922,1754494245937,-1000.0,0.00038219,30]
[377695923,1754494245949,-1000.0,0.00038219,30]
[377695924,1754494245960,-1000.0,0.00038219,30]
[377695925,1754494245973,-1000.0,0.00038219,30]
[377695926,1754494245986,-1000.0,0.00038219,30]
[377695927,1754494245999,-1000.0,0.00038219,30]
[377695928,1754494246014,-1000.0,0.00038219,30]
[377695929,1754494246025,-1000.0,0.00038219,30]